bitfinex-derivatives/quotes_ETHF0:USTF0_20250910
["timestamp","ask_amount","ask_price","bid_price","bid_amount"]
[1757513426166,0.263,4439.3,4439.1,3.2078]
[1757513426765,32.445,4439.4,4439.3,0.5955]
[1757513426970,32.708,4439.4,4439.3,0.5955]
[1757513427574,3.2078,4440.6,4439.5,0.2515]
[1757513427767,0.263,4440.5,4440.1,0.5955]
[1757513428070,32.447,4440.8,4440.5,0.2515]
[1757513428270,0.263,4440.7,4440.5,0.2515]
[1757513428766,3.2078,4441.2,4440.5,4.2515]
[1757513428968,0.263,4441.1,4440.5,0.2515]
[1757513429166,0.4871,4441.1,4440.5,0.2515]
[1757513429768,0.4871,4441.1,4440.0,0.2515]
[1757513429967,3.8178,4440.5,4439.9,3.2078]
[1757513430166,3.8178,4440.5,4439.5,0.847]
[1757513430167,0.263,4440.4,4439.5,0.847]
[1757513431270,0.262,4440.3,4439.6,0.5955]
[1757513432068,0.61,4440.2,4439.6,0.5955]
[1757513432770,3.2078,4440.5,4439.6,0.5955]
[1757513433076,0.262,4440.1,4439.6,0.5955]
[1757513433272,0.262,4440.0,4439.6,0.5955]
[1757513434070,0.262,4440.0,4439.8,0.5955]
[1757513434278,0.872,4440.0,4439.6,0.5955]
[1757513434665,0.61,4439.9,4439.6,0.5955]
[1757513435070,0.61,4439.9,4439.4,3.2078]
[1757513435270,0.61,4440.4,4439.5,4.82074]
[1757513435470,0.61,4440.4,4440.3,3.2078]
[1757513435673,0.2241,4441.1,4440.4,0.5955]
[1757513435872,0.261,4441.0,4440.6,0.5955]
[1757513436072,0.61,4440.9,4440.6,0.5955]
[1757513436578,0.2241,4441.1,4440.8,3.2078]
[1757513436778,0.2241,4441.1,4441.0,0.847]
[1757513436978,0.261,4441.8,4441.1,0.5955]
[1757513437279,0.261,4442.0,4441.8,0.5955]
[1757513437578,0.261,4442.0,4441.2,3.8033]
[1757513438175,0.261,4442.0,4441.3,0.5955]
[1757513441479,0.61,4441.9,4441.3,0.5955]
[1757513441980,0.261,4442.0,4441.3,0.5955]
[1757513442184,0.261,4442.0,4441.8,3.2078]
[1757513442391,32.446,4442.7,4441.8,3.2078]
[1757513442392,0.26,4442.1,4441.8,3.2078]
[1757513442586,0.26,4442.2,4441.9,0.5955]
[1757513442788,0.26,4442.2,4442.1,0.5955]
[1757513443496,0.26,4442.2,4441.9,0.5955]
[1757513443687,0.61,4442.1,4441.8,3.2078]
[1757513443884,0.26,4442.2,4441.8,3.2078]
[1757513444094,0.6281,4442.1,4441.5,0.5955]
[1757513444389,0.26,4442.2,4441.5,0.8311]
[1757513444596,0.26,4442.2,4441.6,0.584]
[1757513445489,0.6281,4442.1,4441.6,0.584]
[1757513445690,3.4678,4442.2,4441.6,0.584]
[1757513445893,0.6281,4442.1,4441.6,0.584]
[1757513446093,4.0959,4442.2,4441.4,0.584]
[1757513448792,0.8719,4442.0,4441.3,3.2078]
[1757513448990,0.6281,4441.9,4441.3,3.2078]
[1757513450001,0.6281,4441.9,4441.3,3.7918]
[1757513450992,0.2438,4442.0,4441.3,3.2078]
[1757513451297,0.6281,4441.9,4441.1,0.584]
[1757513451799,0.258,4441.8,4441.1,0.584]
[1757513452398,0.6281,4442.4,4441.6,0.584]
[1757513452600,0.258,4442.3,4441.6,0.584]
[1757513454596,0.6281,4443.1,4442.6,0.584]
[1757513454799,0.8851,4442.8,4442.6,0.584]
[1757513454990,0.8851,4442.8,4442.5,0.2356]
[1757513455198,0.8851,4442.8,4442.6,0.584]
[1757513455801,0.8851,4442.8,4442.1,0.584]
[1757513457707,0.257,4442.8,4442.1,0.584]
[1757513458204,3.4648,4442.8,4442.1,0.584]
[1757513458503,3.6899,4442.8,4441.8,3.2078]
[1757513458900,3.6899,4442.8,4440.9,0.257]
[1757513458901,0.6281,4441.9,4441.1,3.7918]
[1757513459097,0.257,4441.8,4441.1,3.7918]
[1757513460305,0.6281,4440.4,4440.0,0.25]
[1757513460602,0.2438,4441.5,4440.0,0.25]
[1757513460603,0.257,4440.3,4440.0,0.4856]
[1757513460793,3.4648,4440.7,4440.1,0.584]
[1757513461398,3.2078,4440.2,4440.1,0.584]
[1757513461704,0.6281,4440.1,4440.0,0.25]
[1757513462110,4.6281,4440.1,4440.0,0.25]
[1757513462399,0.6281,4439.9,4438.7,0.77939245]
[1757513462605,3.2078,4439.3,4438.5,1.59899245]
[1757513462801,0.257,4439.2,4438.5,1.59899245]
[1757513463205,0.257,4439.2,4438.5,0.8196]
[1757513463399,0.257,4439.2,4438.6,0.584]
[1757513464316,0.6281,4439.5,4438.6,0.584]
[1757513464604,3.2078,4439.3,4438.6,0.584]
[1757513465002,3.8359,4440.1,4439.0,0.2356]
[1757513465303,3.8359,4440.1,4439.1,0.584]
[1757513465604,3.2078,4440.6,4439.7,0.584]
[1757513466107,0.257,4440.5,4439.7,0.584]
[1757513466404,0.6281,4440.4,4439.7,0.584]
[1757513466807,3.2078,4440.1,4439.7,0.584]
[1757513467006,0.6281,4439.9,4439.1,0.584]
[1757513467808,0.5008,4440.0,4439.1,0.584]
[1757513467809,0.6281,4439.5,4439.1,0.584]
[1757513468010,0.257,4439.4,4439.1,0.584]
[1757513468207,0.257,4439.4,4438.8,0.584]
[1757513469204,0.257,4439.4,4439.0,0.2356]
[1757513469405,3.2078,4439.6,4439.1,0.584]
[1757513469708,0.257,4439.7,4439.6,0.584]
[1757513470502,0.257,4439.7,4439.0,0.8196]
[1757513470703,3.4648,4439.7,4439.0,0.584]
[1757513471103,0.6281,4439.6,4439.0,0.584]
[1757513472001,3.2078,4439.2,4438.4,0.584]
[1757513472314,0.257,4439.1,4438.4,0.584]
[1757513472609,0.257,4439.1,4438.5,0.2356]
[1757513473412,0.6281,4439.0,4438.4,0.584]
[1757513473602,0.6281,4438.9,4438.0,0.77939245]
[1757513473799,3.2078,4438.2,4437.4,0.77939245]
[1757513474005,0.8851,4438.1,4437.4,0.584]
[1757513476012,0.8851,4438.1,4437.0,1.01499245]
[1757513476013,0.6296,4437.5,4437.0,0.5893]
[1757513476211,0.257,4437.4,4436.8,0.77939245]
[1757513476408,0.6296,4437.3,4436.6,3.2078]
[1757513476715,0.6296,4437.3,4436.4,0.5893]
[1757513477104,3.2078,4436.9,4436.1,0.5893]
[1757513477311,0.6296,4436.7,4436.1,0.5893]
[1757513478608,0.6296,4436.3,4435.5,0.5893]
[1757513478811,0.6296,4435.8,4435.0,4.2894]
[1757513479014,0.257,4435.7,4435.0,4.2894]
[1757513480512,0.6296,4436.4,4435.1,0.5893]
[1757513480905,0.257,4436.3,4435.5,3.4501]
[1757513481106,0.257,4436.3,4435.6,0.5893]
[1757513481612,0.257,4436.2,4435.6,0.5893]
[1757513481811,0.257,4436.1,4435.5,0.2423]
[1757513482017,0.6296,4436.0,4435.2,0.5893]
[1757513482620,3.2078,4435.9,4435.2,0.5893]
[1757513483416,0.257,4435.8,4435.2,0.5893]
[1757513484504,0.6296,4435.7,4435.2,0.5893]
[1757513484711,0.8866,4435.8,4435.1,0.5893]
[1757513484911,3.2078,4435.9,4435.1,0.5893]
[1757513485115,0.257,4435.7,4435.1,0.5893]
[1757513486017,0.257,4435.6,4435.1,0.5893]
[1757513486217,0.257,4435.6,4435.0,3.7001]
[1757513486413,0.257,4435.6,4435.1,0.5893]
[1757513486716,0.257,4435.6,4435.0,3.7001]
[1757513487111,0.257,4435.6,4435.0,4.2894]
[1757513487310,0.257,4435.6,4435.0,4.0471]
[1757513488312,0.257,4435.6,4435.0,3.7001]
[1757513488516,0.257,4435.6,4435.1,0.5893]
[1757513488719,0.257,4435.6,4435.0,3.7001]
[1757513488911,0.257,4435.6,4435.1,0.5893]
[1757513489116,0.257,4435.5,4435.1,0.5893]
[1757513490212,3.2078,4435.9,4435.1,0.5893]
[1757513490414,0.257,4435.8,4435.1,0.5893]
[1757513490616,3.2078,4436.4,4435.6,0.5893]
[1757513490821,0.257,4436.3,4435.6,0.5893]
[1757513491115,0.257,4436.3,4436.0,0.2423]
[1757513491418,0.257,4436.3,4436.1,0.5893]
[1757513491617,3.2078,4436.4,4436.1,0.5893]
[1757513491912,3.4648,4436.4,4436.1,0.5893]
[1757513492308,32.468,4437.6,4436.1,0.5893]
[1757513492309,3.2078,4436.9,4436.5,0.2423]
[1757513492614,0.257,4436.8,4436.6,0.5893]
[1757513492815,0.257,4436.8,4436.5,0.2423]
[1757513493017,0.257,4436.8,4436.6,0.5893]
[1757513493218,0.257,4436.8,4436.5,0.2423]
[1757513493420,0.257,4436.8,4436.6,0.5893]
[1757513494024,0.257,4436.8,4436.5,0.2423]
[1757513494025,0.6296,4436.7,4436.1,0.5893]
[1757513495723,0.6296,4436.7,4435.6,0.5893]
[1757513495925,0.6296,4436.3,4435.6,0.5893]
[1757513496116,0.257,4436.2,4435.6,0.5893]
[1757513497521,0.6296,4436.1,4435.6,0.5893]
[1757513497719,0.6296,4436.1,4435.5,0.5893]
[1757513498118,0.2508,4436.0,4435.5,0.5893]
[1757513498524,0.6296,4435.9,4435.1,0.5893]
[1757513498724,0.257,4435.8,4435.1,0.5893]
[1757513499219,0.6296,4435.9,4435.1,0.5893]
[1757513499420,0.6296,4435.7,4435.1,0.5893]
[1757513499824,0.6296,4435.7,4435.0,0.25]
[1757513500132,0.6296,4435.3,4435.0,0.25]
[1757513500421,0.6296,4435.1,4435.0,0.25]
[1757513501323,4.6296,4435.1,4435.0,0.25]
[1757513501524,4.85508,4435.1,4435.0,0.25]
[1757513501827,4.85508,4435.1,4433.9,3.2078]
[1757513501828,0.2508,4435.0,4433.9,3.2078]
[1757513502124,3.2078,4434.6,4434.0,0.5893]
[1757513502325,0.8856,4434.5,4434.1,0.5893]
[1757513502825,0.256,4434.4,4434.1,0.5893]
[1757513503029,0.256,4434.4,4434.0,0.2423]
[1757513503030,3.4638,4435.3,4434.6,0.5893]
[1757513503216,0.256,4435.2,4434.7,0.5893]
[1757513503420,0.256,4435.2,4434.5,0.2423]
[1757513503421,0.6296,4435.1,4434.5,0.2423]
[1757513503918,0.256,4435.0,4434.6,3.2078]
[1757513504525,0.256,4435.0,4434.7,0.6057]
[1757513504720,0.256,4435.0,4434.6,3.2078]
[1757513505115,0.256,4435.0,4434.6,3.99138544]
[1757513505319,0.256,4435.0,4434.7,0.6057]
[1757513505716,0.256,4435.0,4434.6,3.99138544]
[1757513505916,0.256,4434.9,4434.7,0.6057]
[1757513506129,0.256,4434.9,4434.7,0.78358544]
[1757513506328,0.256,4434.9,4434.8,0.6057]
[1757513507129,0.887,4434.9,4434.8,0.6057]
[1757513507329,0.256,4434.9,4434.8,0.6057]
[1757513507830,0.631,4434.8,4434.6,4.59708544]
[1757513508022,0.631,4434.8,4434.7,0.6057]
[1757513508419,3.2078,4435.3,4434.7,0.6057]
[1757513508420,3.8388,4435.3,4434.7,0.6057]
[1757513508627,0.256,4435.2,4434.7,0.6057]
[1757513509027,0.256,4435.2,4434.6,3.99138544]
[1757513509323,0.256,4435.1,4434.7,0.6057]
[1757513509524,3.2078,4435.3,4435.1,0.6057]
[1757513509722,3.2078,4435.3,4435.2,0.78358544]
[1757513509926,3.2078,4435.3,4435.2,1.38928544]
[1757513510728,0.256,4435.9,4435.5,0.2304]
[1757513510927,0.256,4435.9,4435.6,0.6057]
[1757513511225,0.256,4435.9,4435.5,1.01571023]
[1757513511434,0.256,4435.9,4435.6,0.6057]
[1757513511624,0.631,4435.8,4435.6,0.6057]
[1757513511828,0.631,4435.8,4435.5,1.01571023]
[1757513512020,0.256,4435.9,4435.6,0.6057]
[1757513512428,0.256,4435.9,4435.5,1.01571023]
[1757513512621,3.2078,4436.0,4435.6,0.6057]
[1757513512825,3.2078,4436.0,4435.7,0.6057]
[1757513513227,3.2078,4436.0,4435.7,0.78531023]
[1757513513523,3.2078,4436.0,4435.9,0.6057]
[1757513514426,0.631,4435.9,4435.7,0.6057]
[1757513514625,3.4638,4436.0,4435.8,0.6057]
[1757513515132,4.0948,4436.0,4435.7,0.78531023]
[1757513515332,0.631,4435.9,4435.7,0.78531023]
[1757513515625,3.4638,4436.0,4435.5,0.78531023]
[1757513515626,3.7168,4436.0,4435.5,0.78531023]
[1757513515832,0.631,4435.9,4435.2,0.78531023]
[1757513516029,3.2078,4435.5,4435.2,0.78531023]
[1757513516332,0.631,4435.3,4435.0,0.78531023]
[1757513516535,0.256,4435.4,4435.0,0.78531023]
[1757513516721,0.631,4435.3,4435.0,0.78531023]
[1757513517227,0.256,4435.4,4434.6,0.78531023]
[1757513517228,0.631,4434.9,4434.6,0.78531023]
[1757513517429,0.631,4434.7,4434.6,0.78531023]
[1757513517834,0.631,4434.7,4434.5,0.78531023]
[1757513518032,3.4638,4434.8,4434.5,0.78531023]
[1757513518532,0.631,4434.7,4434.5,0.78531023]
[1757513518728,3.2078,4434.8,4434.6,1.39101023]
[1757513518933,3.2078,4434.8,4434.7,0.6057]
[1757513519136,3.4638,4434.8,4434.7,0.6057]
[1757513519624,3.2078,4434.8,4434.7,0.6057]
[1757513519825,3.2078,4434.8,4434.7,1.39101023]
[1757513520125,0.256,4434.8,4434.7,1.39101023]
[1757513521028,3.2078,4435.5,4435.0,0.2304]
[1757513521233,3.2078,4436.0,4435.3,0.78485575]
[1757513521534,0.256,4435.9,4435.8,1.39055575]
[1757513521730,0.631,4436.5,4435.8,1.39055575]
[1757513521731,3.2078,4436.6,4435.9,0.6057]
[1757513521934,3.2078,4436.6,4435.5,0.2304]
[1757513521935,0.256,4436.5,4436.3,0.6057]
[1757513522126,0.256,4436.5,4436.4,0.6057]
[1757513522531,3.2078,4436.6,4436.5,0.6057]
[1757513522832,3.4638,4436.6,4436.5,0.6057]
[1757513523029,3.2078,4436.6,4436.5,0.8361]
[1757513523336,3.2078,4437.2,4436.6,0.6057]
[1757513523535,3.2078,4437.2,4437.1,0.6057]
[1757513523744,0.256,4437.5,4437.1,0.6057]
[1757513524037,3.2078,4437.9,4437.0,0.2304]
[1757513524038,0.256,4437.7,4437.3,1.38950203]
[1757513524236,0.256,4437.7,4437.4,0.6057]
[1757513524440,3.2078,4437.9,4437.4,0.6057]
[1757513524632,3.2078,4437.9,4437.6,0.6057]
[1757513525039,3.2078,4437.9,4437.8,0.6057]
[1757513525246,3.8388,4437.9,4437.8,0.6057]
[1757513525434,3.8388,4437.9,4437.0,0.2304]
[1757513525435,0.631,4437.8,4437.3,0.78380203]
[1757513525737,3.2078,4437.4,4437.1,1.38950203]
[1757513525939,0.256,4437.3,4436.9,0.78380203]
[1757513526141,0.631,4437.2,4436.9,0.6057]
[1757513526348,0.256,4437.3,4436.9,0.6057]
[1757513526537,0.631,4437.2,4436.9,0.6057]
[1757513527340,0.631,4437.2,4436.8,0.78380203]
[1757513527544,0.631,4437.2,4437.1,0.6057]
[1757513527545,0.256,4437.2,4437.1,0.6057]
[1757513528343,3.2078,4437.4,4437.1,0.6057]
[1757513528548,3.2078,4437.9,4437.1,0.6057]
[1757513528748,0.256,4437.8,4437.3,0.78380203]
[1757513529048,0.631,4437.3,4436.6,0.6057]
[1757513529241,0.256,4437.2,4436.6,0.6057]
[1757513529642,0.256,4437.2,4436.4,0.78380203]
[1757513529844,3.2078,4436.8,4436.3,0.78380203]
[1757513530045,0.631,4436.6,4436.3,0.78380203]
[1757513530247,0.631,4436.6,4436.2,0.78380203]
[1757513530644,0.631,4436.6,4436.5,0.6057]
[1757513532054,3.4638,4436.8,4436.5,0.2304]
[1757513532349,3.4638,4436.8,4436.6,0.6057]
[1757513532851,4.0948,4436.8,4436.6,0.6057]
[1757513533053,0.631,4436.7,4436.6,0.6057]
[1757513533751,0.887,4436.7,4436.6,0.6057]
[1757513533951,0.256,4436.7,4436.6,0.6057]
[1757513534143,0.256,4436.7,4436.6,0.6098]
[1757513534348,3.2078,4437.4,4436.6,0.6098]
[1757513534547,0.5896,4437.2,4436.6,0.6098]
[1757513534849,3.7974,4436.9,4436.5,0.2293]
[1757513535046,0.256,4436.8,4436.6,0.6098]
[1757513535247,3.2078,4436.9,4436.7,0.6098]
[1757513535443,0.256,4436.8,4436.7,0.6098]
[1757513535644,3.2078,4437.4,4436.8,0.6098]
[1757513535850,3.2078,4437.4,4437.0,0.2293]
[1757513536049,0.255,4437.3,4437.0,0.2293]
[1757513536356,0.255,4437.3,4437.1,0.6098]
[1757513536557,0.255,4437.3,4437.0,0.2293]
[1757513536749,0.255,4437.3,4437.1,0.6098]
[1757513536945,0.255,4437.3,4437.0,0.2293]
[1757513537150,3.2078,4437.4,4437.0,0.2293]
[1757513537460,3.4628,4437.4,4437.1,0.6098]
[1757513537653,3.2078,4438.0,4437.2,0.6098]
[1757513537858,0.255,4437.9,4437.7,1.39360203]
[1757513538059,0.255,4437.9,4437.8,0.6098]
[1757513538655,32.477,4438.3,4437.8,0.6098]
[1757513538858,0.255,4438.2,4437.7,0.78380203]
[1757513539165,3.2078,4438.6,4437.8,0.6098]
[1757513539456,0.5896,4438.4,4437.7,0.78380203]
[1757513539659,0.5896,4438.0,4437.6,0.78380203]
[1757513539855,0.255,4437.9,4437.6,0.78380203]
[1757513540159,0.255,4437.9,4437.3,0.78380203]
[1757513540561,0.5896,4437.8,4437.3,0.78380203]
[1757513540757,0.255,4437.9,4437.2,0.78380203]
[1757513540959,3.2078,4437.6,4437.1,0.6098]
[1757513541157,0.5896,4437.4,4437.1,0.6098]
[1757513541358,0.255,4437.5,4437.0,0.78380203]
[1757513541655,0.5896,4437.4,4437.0,0.78380203]
[1757513541860,3.2078,4437.1,4436.7,0.78380203]
[1757513542050,0.255,4437.0,4436.6,1.39360203]
[1757513542363,0.255,4437.0,4436.6,0.6098]
[1757513542556,0.5896,4436.9,4436.5,0.78380203]
[1757513543056,0.4908,4437.0,4436.5,0.78380203]
[1757513543251,0.5896,4436.9,4436.5,0.78380203]
[1757513543962,0.4908,4437.0,4436.5,0.78380203]
[1757513544860,0.5896,4436.9,4436.5,0.78380203]
[1757513545055,0.5896,4436.9,4436.5,1.39360203]
[1757513545462,0.5896,4436.9,4436.6,0.6098]
[1757513545661,0.5896,4436.9,4436.5,0.78380203]
[1757513546566,0.5896,4436.9,4436.6,0.6098]
[1757513546862,3.2078,4437.6,4436.6,0.6098]
[1757513547056,3.2078,4437.6,4436.8,0.6098]
[1757513547057,0.255,4437.5,4436.8,0.6098]
[1757513547252,3.2078,4437.6,4437.5,0.2293]
[1757513547467,3.2078,4437.6,4437.5,0.8391]
[1757513547863,0.255,4437.7,4437.6,0.6098]
[1757513548267,0.255,4437.7,4437.6,1.39360203]
[1757513548858,0.8446,4437.7,4437.6,1.39360203]
[1757513549058,0.8446,4437.7,4437.6,0.78380203]
[1757513549260,0.8446,4437.7,4437.1,1.77969292]
[1757513550567,0.255,4437.7,4437.2,0.6098]
[1757513551063,32.464,4438.1,4437.2,0.6098]
[1757513551268,0.255,4438.0,4437.9,0.6098]
[1757513553365,0.255,4438.8,4438.1,0.6098]
[1757513553564,0.255,4438.8,4438.7,0.6098]
[1757513553965,0.5896,4438.8,4438.7,0.6098]
[1757513554163,0.8446,4438.8,4438.7,0.6098]
[1757513554556,0.8446,4438.8,4438.5,0.7842789]
[1757513554763,0.5896,4438.7,4438.5,1.3940789]
[1757513555061,0.5896,4438.7,4438.6,0.6098]
[1757513555260,3.2078,4438.9,4438.6,0.6098]
[1757513555462,0.255,4438.8,4438.7,0.6098]
[1757513556064,0.255,4438.8,4438.7,1.3940789]
[1757513556364,0.255,4439.3,4438.8,0.6098]
[1757513556568,0.255,4439.3,4439.2,0.6098]
[1757513556862,0.8254,4440.0,4439.2,3.99098245]
[1757513557058,0.255,4439.9,4439.5,1.01233706]
[1757513557258,0.255,4439.9,4439.6,0.6098]
[1757513557463,0.255,4439.9,4439.5,0.2293]
[1757513557861,0.255,4439.9,4439.6,0.6098]
[1757513558066,0.5896,4439.8,4439.5,0.2293]
[1757513558270,0.255,4439.9,4439.6,0.6098]
[1757513558469,0.5896,4439.8,4439.6,0.6098]
[1757513558762,0.5896,4439.8,4439.2,3.99083706]
[1757513559269,0.5896,4439.8,4439.2,3.2078]
[1757513560061,0.5896,4439.8,4439.3,0.6098]
[1757513560258,0.5896,4439.8,4439.2,3.2078]
[1757513560460,3.7974,4440.3,4439.5,0.2293]
[1757513560658,0.255,4440.1,4439.5,0.2293]
[1757513560866,0.255,4440.1,4439.6,0.6098]
[1757513561061,0.255,4440.1,4439.5,0.2293]
[1757513561369,0.255,4440.1,4439.6,0.6098]
[1757513561964,0.5896,4440.0,4439.5,0.8391]
[1757513562266,0.5896,4440.0,4439.5,0.2293]
[1757513562466,0.8254,4440.0,4439.3,0.6098]
[1757513562669,0.8436,4440.0,4439.3,0.6098]
[1757513565864,1.6261,4440.0,4439.9,0.9964]
[1757513566171,1.0365,4440.0,4439.2,3.2078]
[1757513566367,0.598,4439.9,4439.3,0.5944]
[1757513567066,1.3805,4439.4,4439.3,1.4004]
[1757513567269,0.7825,4439.4,4439.3,1.4004]
[1757513567464,0.254,4439.6,4439.4,0.5944]
[1757513567763,0.6622,4439.6,4439.5,1.6398]
[1757513568767,0.4082,4439.6,4439.5,1.6398]
[1757513568970,0.6622,4439.6,4439.5,1.6398]
[1757513569267,32.462,4440.2,4439.6,0.5944]
[1757513569268,0.254,4439.7,4439.6,0.5944]
[1757513569469,0.254,4439.7,4439.6,1.4004]
[1757513570163,32.462,4440.2,4439.6,1.4004]
[1757513570373,0.598,4440.0,4439.7,0.5944]
[1757513570663,0.4082,4439.8,4439.7,1.4004]
[1757513571374,0.7825,4439.8,4439.7,1.4004]
[1757513571571,0.598,4439.7,4439.2,3.8022]
[1757513571767,0.7825,4439.3,4439.2,1.4004]
[1757513571966,0.7825,4439.0,4438.9,1.4004]
[1757513572768,1.3805,4439.0,4438.9,1.4004]
[1757513572971,1.3805,4439.0,4438.9,0.402]
[1757513573175,0.2477,4439.0,4438.3,0.78303706]
[1757513573372,0.2477,4439.0,4437.7,4.38421836]
[1757513573373,0.2477,4438.5,4437.9,0.78303706]
[1757513573573,0.598,4437.4,4437.3,0.78303706]
[1757513573877,0.598,4437.4,4436.6,3.2078]
[1757513573878,1.0773,4437.4,4437.0,0.5944]
[1757513574170,0.22538,4437.3,4436.8,0.78303706]
[1757513574366,0.598,4437.2,4436.7,1.37743706]
[1757513574568,0.598,4437.3,4436.6,1.37743706]
[1757513574763,0.598,4437.0,4436.7,0.5944]
[1757513575073,0.254,4436.9,4436.7,0.5944]
[1757513575275,0.852,4436.9,4436.8,0.5944]
[1757513576268,0.254,4436.9,4436.8,0.5944]
[1757513576971,0.254,4436.9,4436.4,1.37743706]
[1757513577171,0.254,4436.9,4436.0,3.6265723]
[1757513577172,0.598,4436.8,4436.3,0.78303706]
[1757513577478,0.598,4436.5,4436.3,0.5944]
[1757513577666,0.598,4436.4,4436.3,0.5944]
[1757513579375,3.2078,4436.6,4436.2,0.5944]
[1757513579678,0.254,4436.5,4436.2,0.5944]
[1757513579873,3.2078,4436.6,4436.5,0.2394]
[1757513580071,3.4618,4436.6,4436.5,0.8338]
[1757513580471,3.2078,4436.6,4436.5,0.8338]
[1757513580672,4.0598,4436.6,4436.1,0.78303706]
[1757513580879,3.4618,4436.6,4436.2,0.5944]
[1757513581271,3.4618,4436.6,4435.8,0.78303706]
[1757513581272,0.2477,4436.5,4435.8,0.78303706]
[1757513581471,0.2477,4436.5,4435.5,0.78303706]
[1757513581472,0.8457,4436.0,4435.5,0.78303706]
[1757513581674,0.8457,4436.0,4435.0,0.5944]
[1757513581675,3.2078,4435.6,4435.0,0.5944]
[1757513581871,0.598,4435.4,4435.0,0.5944]
[1757513582071,0.5017,4435.5,4435.0,0.5944]
[1757513582375,3.8058,4435.1,4435.0,0.5944]
[1757513582672,3.4618,4435.1,4434.5,0.2394]
[1757513582880,3.2078,4434.6,4434.1,0.5944]
[1757513583067,0.254,4434.5,4434.0,0.2394]
[1757513583467,0.852,4434.5,4434.1,0.5944]
[1757513584177,0.598,4435.0,4434.1,0.5944]
[1757513584374,0.254,4434.9,4434.1,0.5944]
[1757513584688,0.254,4434.9,4434.0,0.8338]
[1757513584689,3.8058,4434.6,4434.0,0.8338]
[1757513584881,0.254,4434.5,4434.1,0.5944]
[1757513585367,0.598,4434.4,4434.1,0.5944]
[1757513585572,0.598,4434.4,4434.0,0.2394]
[1757513585871,0.598,4434.4,4434.1,0.5944]
[1757513586273,3.2078,4434.6,4434.1,0.5944]
[1757513586575,0.2477,4435.5,4434.0,0.2394]
[1757513586576,3.2078,4435.1,4434.5,0.2394]
[1757513587075,0.254,4435.0,4434.6,0.5944]
[1757513587266,0.254,4435.0,4434.5,0.2394]
[1757513587671,0.254,4435.0,4434.6,0.5944]
[1757513587879,0.254,4435.1,4435.0,0.2394]
[1757513588178,0.254,4435.2,4435.1,0.5944]
[1757513591178,3.2078,4435.6,4435.1,0.5944]
[1757513591483,3.2078,4435.6,4435.5,0.5944]
[1757513591678,0.598,4435.4,4435.1,0.5944]
[1757513592084,0.598,4435.4,4434.6,0.5944]
[1757513593585,3.2078,4435.1,4434.5,0.2394]
[1757513593779,0.851,4435.0,4434.5,0.8338]
[1757513593986,0.598,4434.9,4434.6,0.5896]
[1757513594281,0.598,4434.9,4434.5,0.2394]
[1757513594685,0.253,4435.0,4434.5,0.2394]
[1757513594887,0.5947,4434.9,4434.6,0.5896]
[1757513595180,0.253,4435.0,4434.6,0.5896]
[1757513595388,0.5947,4434.9,4434.6,0.5896]
[1757513595881,0.253,4435.0,4434.5,0.2394]
[1757513596086,0.5947,4434.9,4434.5,0.2394]
[1757513596283,3.2078,4435.1,4434.6,0.5896]
[1757513596489,0.5947,4435.5,4435.0,0.2429]
[1757513596490,0.253,4435.5,4435.0,0.2429]
[1757513596683,0.253,4435.5,4435.1,0.5896]
[1757513597179,0.253,4435.5,4435.0,0.2429]
[1757513597491,0.5947,4435.7,4435.1,0.5896]
[1757513597687,0.253,4435.6,4435.0,0.2429]
[1757513598187,0.8477,4435.6,4435.1,0.5896]
[1757513598382,0.8477,4435.6,4435.0,0.2429]
[1757513598383,0.5947,4435.5,4435.0,0.2429]
[1757513598585,0.5947,4435.5,4434.6,0.5896]
[1757513599778,0.253,4435.4,4434.7,2.94831586]
[1757513599984,0.2254,4435.3,4435.1,0.5896]
[1757513600891,0.2254,4435.3,4435.2,4.27519232]
[1757513601090,0.253,4436.0,4435.3,0.5896]
[1757513601290,0.253,4436.0,4435.9,1.3297]
[1757513601687,0.253,4436.2,4436.0,0.2429]
[1757513601888,3.2078,4436.3,4436.2,0.7401]
[1757513602090,3.2078,4436.3,4436.2,1.3297]
[1757513603093,3.5875,4436.3,4436.2,1.3297]
[1757513603394,3.2078,4436.3,4436.2,0.5896]
[1757513604384,0.4783,4436.7,4436.2,0.5896]
[1757513604589,0.2253,4436.7,4436.6,0.5896]
[1757513604790,0.253,4436.7,4436.5,0.78303706]
[1757513604986,0.253,4436.7,4436.6,0.5896]
[1757513604987,0.8477,4436.7,4436.6,0.5896]
[1757513605189,0.8477,4436.7,4436.6,1.37263706]
[1757513605496,0.8477,4436.7,4436.6,0.5896]
[1757513605689,1.6066,4436.7,4436.6,0.5896]
[1757513605890,1.3536,4436.6,4436.5,1.14963706]
[1757513606292,1.3536,4436.6,4436.5,1.73996324]
[1757513606793,1.3536,4436.6,4436.5,0.78376324]
[1757513606997,1.3536,4436.6,4436.1,0.78376324]
[1757513606998,0.5947,4436.5,4436.1,0.78376324]
[1757513607206,0.253,4436.7,4436.1,0.78376324]